bitfinex/quotes_BTCUSD_20250527
["timestamp","ask_amount","ask_price","bid_price","bid_amount"]
[1748362928946,0.20903164,110160.0,110150.0,0.74207636]
[1748362929169,0.20903164,110160.0,110150.0,1.29085385]
[1748362929727,0.19063164,110160.0,110150.0,1.30945385]
[1748362930450,0.19970909,110160.0,110150.0,2.68691787]
[1748362930892,0.19063164,110160.0,110150.0,2.68691787]
[1748362931338,0.19063164,110160.0,110150.0,2.71079623]
[1748362933782,0.53808516,110170.0,110160.0,0.5215541]
[1748362934025,0.55623859,110170.0,110160.0,2.80286624]
[1748362934292,0.53808525,110170.0,110160.0,1.73959359]
[1748362934558,0.53808525,110170.0,110160.0,2.13959359]
[1748362935062,0.53808525,110170.0,110160.0,1.95803949]
[1748362936282,0.55568525,110170.0,110160.0,1.94053949]
[1748362936722,0.55568525,110170.0,110160.0,1.94049949]
[1748362937487,0.53808525,110170.0,110160.0,2.25689949]
[1748362938893,0.53808525,110170.0,110160.0,2.81475468]
[1748362939576,0.53808525,110170.0,110160.0,2.80567698]
[1748362940232,0.53808525,110170.0,110160.0,2.46567698]
[1748362941380,0.19967333,110180.0,110170.0,1.11297962]
[1748362941609,0.20874897,110180.0,110170.0,2.46701757]
[1748362941829,0.20874897,110180.0,110170.0,2.47193376]
[1748362942078,0.20874897,110180.0,110170.0,2.63919373]
[1748362942297,0.20874897,110180.0,110170.0,3.03116844]
[1748362942520,0.20874897,110180.0,110170.0,3.06294299]
[1748362942731,0.20883868,110180.0,110170.0,3.06494299]
[1748362942960,0.20883868,110180.0,110170.0,2.15457644]
[1748362943182,0.19976304,110180.0,110170.0,2.34050794]
[1748362943411,0.19976304,110180.0,110170.0,2.35059673]
[1748362943644,0.19976304,110180.0,110170.0,2.76444673]
[1748362944102,0.19976304,110180.0,110170.0,2.40404944]
[1748362944328,0.21746304,110180.0,110170.0,2.44504044]
[1748362944547,0.21746304,110180.0,110170.0,2.39994044]
[1748362944833,0.21746304,110180.0,110170.0,2.25626849]
[1748362945074,0.23476304,110180.0,110170.0,2.44765349]
[1748362945353,0.23476304,110180.0,110170.0,2.43058449]
[1748362945575,0.23476304,110180.0,110170.0,2.40688449]
[1748362945798,0.23476304,110180.0,110170.0,2.12049449]
[1748362946070,0.23476304,110180.0,110170.0,2.74115649]
[1748362946506,0.23476304,110180.0,110170.0,2.60511649]
[1748362947674,0.23476304,110180.0,110170.0,2.60507649]
[1748362948144,0.23476304,110180.0,110170.0,1.68041749]
[1748362948395,0.21746304,110180.0,110170.0,2.62215349]
[1748362949269,0.21746304,110180.0,110170.0,3.14599449]
[1748362949505,0.21746304,110180.0,110170.0,3.13367149]
[1748362949728,0.23576304,110180.0,110170.0,2.57886449]
[1748362949987,0.23576304,110180.0,110170.0,2.23072149]
[1748362950212,0.23576304,110180.0,110170.0,2.17562549]
[1748362950873,0.21746304,110180.0,110170.0,1.626848]
[1748362951117,0.21746304,110180.0,110170.0,2.17562549]
[1748362951343,0.23586304,110180.0,110170.0,2.17562549]
[1748362952249,0.23586304,110180.0,110170.0,2.47492549]
[1748362953166,0.21746304,110180.0,110170.0,2.47492549]
[1748362954057,0.23436304,110180.0,110170.0,2.47492549]
[1748362954973,0.21746304,110180.0,110170.0,2.47492549]
[1748362956845,0.23526304,110180.0,110170.0,2.47492549]
[1748362957080,0.23526304,110180.0,110170.0,2.47488549]
[1748362957307,0.23526304,110180.0,110170.0,2.37968749]
[1748362961390,0.23526304,110180.0,110170.0,2.08572749]
[1748362961626,0.23526304,110180.0,110170.0,2.37964749]
[1748362961860,0.23526304,110180.0,110170.0,2.08572749]
[1748362962088,0.23446304,110180.0,110170.0,2.37964749]
[1748362962314,0.23446304,110180.0,110170.0,2.14211549]
[1748362962526,0.23446304,110180.0,110170.0,1.84819549]
[1748362962783,0.23446304,110180.0,110170.0,1.97955749]
[1748362964147,0.23446304,110180.0,110170.0,1.68025749]
[1748362965734,0.23446304,110180.0,110170.0,1.38633749]
[1748362965959,0.23446304,110180.0,110170.0,1.68021749]
[1748362966644,0.23446304,110180.0,110170.0,1.29177749]
[1748362966908,0.32551699,110180.0,110170.0,0.403]
[1748362967170,0.32551699,110180.0,110170.0,0.743]
[1748362967372,0.32551699,110180.0,110170.0,1.29177749]
[1748362967590,0.32551699,110180.0,110170.0,0.95177749]
[1748362967853,0.23446304,110180.0,110170.0,0.95177749]
[1748362968081,0.21746304,110180.0,110170.0,1.65692949]
[1748362968531,0.21746304,110180.0,110170.0,1.52220149]
[1748362969002,0.21746304,110180.0,110170.0,1.81608149]
[1748362970127,0.21746304,110180.0,110170.0,2.11538149]
[1748362970358,0.21746304,110180.0,110170.0,2.3235959]
[1748362970359,0.19976304,110180.0,110170.0,2.3235959]
[1748362970583,0.19068715,110180.0,110170.0,2.13298149]
[1748362971257,0.20748715,110180.0,110170.0,2.13298149]
[1748362972490,0.19068715,110180.0,110170.0,2.13298149]
[1748362972716,0.19068715,110180.0,110170.0,2.31451911]
[1748362972959,0.19068715,110180.0,110170.0,2.13298149]
[1748362973696,0.19068715,110180.0,110170.0,2.31451911]
[1748362974133,0.19068715,110180.0,110170.0,2.13298149]
[1748362974816,0.19068715,110180.0,110170.0,2.32359599]
[1748362975973,0.19068715,110180.0,110170.0,2.31451911]
[1748362976193,0.20798715,110180.0,110170.0,2.11538149]
[1748362977203,0.20798715,110180.0,110170.0,2.20994149]
[1748362978180,0.20798715,110180.0,110170.0,2.39147911]
[1748362978603,0.20798715,110180.0,110170.0,2.20994149]
[1748362979040,0.20798715,110180.0,110170.0,1.367284]
[1748362979310,0.22538715,110180.0,110170.0,2.20986149]
[1748362981031,0.22538715,110180.0,110170.0,1.91606149]
[1748362981259,0.22538715,110180.0,110170.0,2.20982149]
[1748362985668,0.20798715,110180.0,110170.0,2.20982149]
[1748362985886,0.22518715,110180.0,110170.0,2.20982149]
[1748362987700,0.20798715,110180.0,110170.0,2.20982149]
[1748362991116,0.21706296,110180.0,110170.0,2.39135911]
[1748362991329,0.21706271,110180.0,110170.0,2.4004359]
[1748362991790,0.21706271,110180.0,110170.0,2.42731245]
[1748362992026,0.21706271,110180.0,110170.0,2.4182359]
[1748362992249,0.21706271,110180.0,110170.0,1.97911749]
[1748362992250,0.2264869,110180.0,110170.0,1.97911749]
[1748362992469,0.2264869,110180.0,110170.0,1.67981749]
[1748362992704,0.2264869,110180.0,110170.0,0.743]
[1748362992949,0.2264869,110180.0,110170.0,0.403]
[1748362993187,0.35855107,110180.0,110170.0,0.403]
[1748362993412,0.37309192,110180.0,110170.0,0.403]
[1748362993659,0.37309192,110180.0,110170.0,0.003]
[1748362993880,0.43588312,110180.0,110170.0,0.003]
[1748362994096,0.43588312,110180.0,110170.0,0.002]
[1748362994309,0.3948729,110180.0,110170.0,0.002]
[1748362994533,0.23630893,110160.0,110150.0,0.88877749]
[1748362994812,0.32736288,110160.0,110150.0,0.88877749]
[1748362996005,0.32736288,110160.0,110150.0,0.88977749]
[1748362997771,0.32736288,110160.0,110150.0,1.28977749]
[1748363000301,0.23630893,110160.0,110150.0,1.28977749]
[1748363002159,0.21750893,110160.0,110150.0,1.28977749]
[1748363002665,0.21850601,110170.0,110160.0,0.19970893]
[1748363002902,0.22758256,110170.0,110160.0,1.07033159]
[1748363003134,0.21850601,110170.0,110160.0,1.18233749]
[1748363003357,0.21850601,110170.0,110160.0,1.58233749]
[1748363003579,0.21850601,110170.0,110160.0,1.76389159]
[1748363003812,0.19970601,110170.0,110160.0,2.33848904]
[1748363003990,0.19162922,110170.0,110160.0,2.12970249]
[1748363004243,0.19262922,110170.0,110160.0,2.17675529]
[1748363004460,0.20169038,110170.0,110160.0,2.20398732]
[1748363004680,0.21984355,110170.0,110160.0,2.19491028]
[1748363004899,0.21984355,110170.0,110160.0,2.20398765]
[1748363005114,0.21884355,110170.0,110160.0,2.20398765]
[1748363005326,0.21784355,110170.0,110160.0,2.21306494]
[1748363005984,0.21784355,110170.0,110160.0,2.21406494]
[1748363007602,0.02722914,110170.0,110160.0,2.21406436]
[1748363007818,0.22692043,110170.0,110160.0,2.21406436]
[1748363008045,0.2178443,110170.0,110160.0,2.20498724]
[1748363008934,0.2178443,110170.0,110160.0,1.65620975]
[1748363009181,0.20876792,110170.0,110160.0,1.420146]
[1748363009422,0.2079145,110170.0,110160.0,1.67536349]
[1748363009645,0.2248145,110170.0,110160.0,1.96884349]
[1748363009863,0.2079145,110170.0,110160.0,1.96884349]
[1748363010151,0.2079145,110170.0,110160.0,2.15039759]
[1748363010598,0.2079145,110170.0,110160.0,2.16855258]
[1748363010825,0.2079145,110170.0,110160.0,2.16855275]
[1748363012394,0.2079145,110170.0,110160.0,2.17763012]
[1748363012613,0.2079145,110170.0,110160.0,1.83763012]
[1748363012835,0.2079145,110170.0,110160.0,1.82855275]
[1748363013497,0.2079145,110170.0,110160.0,1.81947521]
[1748363014638,0.21653762,110170.0,110160.0,1.96876349]
[1748363014844,0.21653762,110170.0,110160.0,2.15031759]
[1748363015063,0.21653762,110170.0,110160.0,2.15939529]
[1748363015283,0.21653762,110170.0,110160.0,2.16847291]
[1748363015528,0.21699079,110170.0,110160.0,2.17755028]
[1748363015735,0.21699079,110170.0,110160.0,2.16847291]
[1748363015952,0.21699079,110170.0,110160.0,2.17755045]
[1748363016163,0.21699079,110170.0,110160.0,2.1866279]
[1748363016469,0.21699079,110170.0,110160.0,2.19570527]
[1748363016680,0.20791433,110170.0,110160.0,2.1866279]
[1748363017126,0.19883762,110170.0,110160.0,2.16847291]
[1748363017395,0.00907622,110170.0,110160.0,2.1866274]
[1748363017597,0.01815301,110170.0,110160.0,2.2042274]
[1748363018955,0.035041,110180.0,110170.0,0.54876726]
[1748363019177,0.23471375,110180.0,110170.0,1.83626645]
[1748363019643,0.22563827,110180.0,110170.0,1.8271899]
[1748363019870,0.22563827,110180.0,110170.0,2.2271899]
[1748363020336,0.22563827,110180.0,110170.0,2.2443899]
[1748363020570,0.22563827,110180.0,110170.0,2.23626653]
[1748363020836,0.24253827,110180.0,110170.0,2.24534308]
[1748363021031,0.24353827,110180.0,110170.0,2.24534308]
[1748363021254,0.22663827,110180.0,110170.0,2.24534308]
[1748363021533,0.21856271,110180.0,110170.0,2.23626653]
[1748363021770,0.21856271,110180.0,110170.0,2.24534308]
[1748363022436,0.21856271,110180.0,110170.0,2.23626653]
[1748363023697,0.2094869,110180.0,110170.0,2.5204299]
[1748363024350,0.20041085,110180.0,110170.0,2.15267349]
[1748363024580,0.20041085,110180.0,110170.0,2.12661549]
[1748363024804,0.21731085,110180.0,110170.0,2.22081549]
[1748363025028,0.21731085,110180.0,110170.0,2.40235311]
[1748363025300,0.20041085,110180.0,110170.0,2.41142999]
[1748363025519,0.20041085,110180.0,110170.0,2.4205067]
[1748363027442,0.20948682,110180.0,110170.0,2.4205067]
[1748363027671,0.21856254,110180.0,110170.0,2.43865971]
[1748363028124,0.21856254,110180.0,110170.0,2.42958333]
[1748363028819,0.22763859,110180.0,110170.0,2.42958333]
[1748363030212,0.22763859,110180.0,110170.0,2.13634333]
[1748363030430,0.22763859,110180.0,110170.0,2.42946333]
[1748363031895,0.22763859,110180.0,110170.0,2.43853988]
[1748363032365,0.22763859,110180.0,110170.0,2.42946333]
[1748363034740,0.22763859,110180.0,110170.0,2.4203867]
[1748363035219,0.00208971,110180.0,110170.0,4.74365532]
[1748363035224,0.02931663,110180.0,110170.0,4.7141305]
[1748363035505,0.21991374,110180.0,110170.0,4.3296095]
[1748363036034,0.21891374,110180.0,110170.0,5.3222305]
[1748363036316,0.24398979,110180.0,110170.0,4.53002266]
[1748363036645,0.24398979,110180.0,110170.0,2.13936949]
[1748363036646,0.21676287,110180.0,110170.0,2.13936949]
[1748363037068,0.23326287,110180.0,110170.0,2.13936949]
[1748363037324,0.21676287,110180.0,110170.0,2.32090711]
[1748363037597,0.21676287,110180.0,110170.0,2.43011457]
[1748363037848,0.21676287,110180.0,110170.0,2.43211457]
[1748363039181,0.2076869,110180.0,110170.0,2.42303794]
[1748363039664,0.2076869,110180.0,110170.0,2.43211473]
[1748363040323,0.2236869,110180.0,110170.0,2.44119144]
[1748363040554,0.2236869,110180.0,110170.0,2.43211473]
[1748363041032,0.19861085,110180.0,110170.0,2.42303794]
[1748363041259,0.21461085,110180.0,110170.0,2.42303794]
[1748363042836,0.21461085,110180.0,110170.0,2.23230344]
[1748363043105,0.21461085,110180.0,110170.0,1.82533049]
[1748363043346,0.21461085,110180.0,110170.0,1.67885749]
[1748363043572,0.21461085,110180.0,110170.0,1.87702849]
[1748363043780,0.21461085,110180.0,110170.0,1.82820749]
[1748363044247,0.21461085,110180.0,110170.0,1.29077749]
[1748363044489,0.21461085,110180.0,110170.0,0.402]
[1748363044754,0.21461085,110180.0,110170.0,1.28877749]
[1748363045007,0.21461085,110180.0,110170.0,1.28977749]
[1748363045510,0.3056648,110180.0,110170.0,0.741]
[1748363046460,0.3056648,110180.0,110170.0,1.28977749]
[1748363048332,0.3056648,110180.0,110170.0,0.94977749]
[1748363052568,0.19861085,110180.0,110170.0,1.28977749]
[1748363053007,0.19068682,110180.0,110170.0,2.89612799]
[1748363053228,0.19068682,110180.0,110170.0,2.36259078]
[1748363053660,0.19068682,110180.0,110170.0,2.32642978]
[1748363053884,0.19068682,110180.0,110170.0,2.33550649]
[1748363054109,8.971e-05,110180.0,110170.0,2.41748373]
[1748363054366,0.20883794,110180.0,110170.0,2.42656028]
[1748363054565,0.0273168,110180.0,110170.0,2.43563658]
[1748363054811,0.03639277,110180.0,110170.0,2.43563658]
[1748363055694,0.23501391,110180.0,110170.0,2.43563658]
[1748363055909,0.05349277,110180.0,110170.0,2.43563658]
[1748363057275,0.05349277,110180.0,110170.0,2.41823658]
[1748363057744,0.23501391,110180.0,110170.0,2.41823658]
[1748363058657,0.24408996,110180.0,110170.0,2.41823658]
[1748363058915,0.002,110190.0,110180.0,1.48741831]
[1748363059147,0.01107449,110190.0,110180.0,2.14076475]
[1748363059377,0.21980402,110190.0,110180.0,1.60176644]
[1748363059616,0.2337548,110190.0,110180.0,1.28877749]
[1748363059818,0.2337548,110190.0,110180.0,1.58145749]
[1748363060061,0.2347548,110190.0,110180.0,1.58145749]
[1748363060287,0.2357548,110190.0,110180.0,1.58145749]
[1748363060516,0.2347548,110190.0,110180.0,1.58145749]
[1748363060742,0.2337548,110190.0,110180.0,1.58245749]
[1748363061216,0.2337548,110190.0,110180.0,1.03368]
[1748363061436,0.2337548,110190.0,110180.0,1.58245749]
[1748363062111,0.2337548,110190.0,110180.0,1.28977749]
[1748363062361,0.2337548,110190.0,110180.0,1.58241749]
[1748363062630,0.2337548,110190.0,110180.0,1.28977749]
[1748363063095,0.2337548,110190.0,110180.0,1.58241749]
[1748363063543,0.2337548,110190.0,110180.0,1.03364]
[1748363063790,0.2337548,110190.0,110180.0,1.58241749]
[1748363064235,0.2337548,110190.0,110180.0,1.59152146]
[1748363064941,0.2337548,110190.0,110180.0,1.04274397]
[1748363065176,0.2337548,110190.0,110180.0,1.59152146]
[1748363071709,0.2337548,110190.0,110180.0,1.59136146]
[1748363072833,0.2337548,110190.0,110180.0,1.29888146]
[1748363073084,0.2337548,110190.0,110180.0,1.59136146]
[1748363074846,0.2337548,110190.0,110180.0,1.29888146]
[1748363075062,0.2337548,110190.0,110180.0,1.59132146]
[1748363078132,0.2337548,110190.0,110180.0,1.58221749]
[1748363080194,0.2337548,110190.0,110180.0,1.58213749]
[1748363081214,0.2337548,110190.0,110180.0,1.24213749]
[1748363083781,0.2337548,110190.0,110180.0,1.58213749]
[1748363083994,0.2337548,110190.0,110180.0,1.58205749]
[1748363086904,0.2181548,110190.0,110180.0,1.61158231]
[1748363087111,0.2181548,110190.0,110180.0,1.58205749]
[1748363088745,0.2346548,110190.0,110180.0,1.18205749]
[1748363089841,0.2346548,110190.0,110180.0,1.58205749]
[1748363091245,0.2346548,110190.0,110180.0,1.28977749]
[1748363091464,0.2346548,110190.0,110180.0,1.58197749]
[1748363099282,0.2181548,110190.0,110180.0,1.58197749]
[1748363099525,0.2181548,110190.0,110180.0,1.24197749]
[1748363099765,0.19257982,110190.0,110180.0,2.01631331]
[1748363099980,0.19257982,110190.0,110180.0,1.63553749]
[1748363100220,0.19257982,110190.0,110180.0,1.93483749]
[1748363101154,0.19257982,110190.0,110180.0,2.27483749]
[1748363102014,0.20867982,110190.0,110180.0,2.27483749]
[1748363103555,0.20867982,110190.0,110180.0,2.25813749]
[1748363103771,0.22557982,110190.0,110180.0,2.25813749]
[1748363104433,0.22557982,110190.0,110180.0,2.35177749]
[1748363104659,0.20867982,110190.0,110180.0,2.35177749]
[1748363105609,0.20867982,110190.0,110180.0,1.96593749]
[1748363105831,0.22557982,110190.0,110180.0,2.25789749]
[1748363106962,0.22557982,110190.0,110180.0,2.03171349]
[1748363107838,0.20867982,110190.0,110180.0,2.03171349]
[1748363113398,0.36140061,110190.0,110180.0,0.001]
[1748363113674,0.37594146,110190.0,110180.0,0.001]
[1748363113912,0.40663858,110190.0,110180.0,0.001]
[1748363114138,0.5320823,110190.0,110180.0,0.001]
[1748363114390,0.4387223,110190.0,110180.0,0.001]
[1748363114599,0.31573377,110190.0,110180.0,0.54977749]
[1748363114803,0.60853377,110190.0,110180.0,0.57830231]
[1748363115027,0.60953377,110190.0,110180.0,0.54877749]
[1748363115258,0.60853377,110190.0,110180.0,0.54877749]
[1748363115503,0.61053377,110190.0,110180.0,0.54877749]
[1748363115730,0.61253377,110190.0,110180.0,0.54877749]
[1748363115955,0.61253377,110190.0,110160.0,0.88877749]
[1748363115956,0.21313593,110180.0,110170.0,0.54877749]
[1748363116241,0.30418988,110180.0,110170.0,0.54877749]
[1748363116461,0.23129079,110170.0,110160.0,0.8888672]
[1748363123262,0.23129079,110170.0,110160.0,0.34008971]
[1748363126767,0.32234474,110170.0,110160.0,8.971e-05]
[1748363127000,0.32234474,110170.0,110160.0,0.40008971]
[1748363128638,0.32334474,110170.0,110160.0,0.40008971]
[1748363129343,0.32434474,110170.0,110160.0,0.40008971]
[1748363129578,0.32434474,110170.0,110160.0,0.9488672]
[1748363129795,0.23329079,110170.0,110160.0,0.9488672]
[1748363130922,0.23329079,110170.0,110160.0,0.54877749]
[1748363131872,0.23329079,110170.0,110160.0,0.94877749]
[1748363132611,0.22373164,110160.0,110150.0,0.64818517]
[1748363133071,0.31478559,110160.0,110150.0,1.04818517]
[1748363134012,0.31478559,110160.0,110150.0,0.74]
[1748363134257,0.31478559,110160.0,110140.0,0.002]
[1748363134258,0.22324894,110150.0,110140.0,0.002]
[1748363134503,0.97102123,110150.0,110140.0,0.002]
[1748363134757,0.98102123,110150.0,110140.0,0.002]
[1748363135004,0.24630417,110130.0,110120.0,0.002]
[1748363135231,0.72235812,110130.0,110120.0,0.002]
[1748363135914,0.77235812,110130.0,110120.0,0.002]
[1748363136373,0.72440744,110130.0,110120.0,0.002]
[1748363137067,0.77440744,110130.0,110120.0,0.002]
[1748363137784,0.83123875,110130.0,110120.0,0.002]
[1748363138022,0.84516616,110130.0,110120.0,0.002]
[1748363138932,0.79516616,110130.0,110120.0,0.002]
[1748363139235,0.35333485,110130.0,110120.0,0.002]
[1748363139464,0.73805485,110130.0,110120.0,0.002]
[1748363142404,0.73809485,110130.0,110120.0,0.002]
[1748363142631,0.35333485,110130.0,110120.0,0.002]
[1748363142911,0.20181264,110130.0,110120.0,0.92030231]
[1748363143337,0.20181264,110130.0,110120.0,0.89077749]
[1748363143600,0.20181264,110130.0,110120.0,0.92030231]
[1748363143776,0.20181264,110130.0,110120.0,0.90747749]
[1748363144036,0.20181264,110130.0,110120.0,0.56747749]
[1748363144311,0.20181264,110130.0,110120.0,0.55077749]
[1748363144543,0.20081264,110130.0,110120.0,0.55077749]
[1748363144779,0.20081264,110130.0,110120.0,0.56687749]
[1748363145002,0.19981264,110130.0,110120.0,0.56687749]
[1748363145233,0.19981264,110130.0,110120.0,0.96687749]
[1748363146153,0.19981264,110130.0,110120.0,0.93264035]
[1748363146611,0.19981264,110130.0,110120.0,2.45295635]
[1748363147088,0.19981264,110130.0,110120.0,2.35853335]
[1748363147521,0.19981264,110130.0,110120.0,2.03913335]
[1748363147769,0.19981264,110130.0,110120.0,1.86009335]
[1748363148195,0.19981264,110130.0,110120.0,1.25654035]
[1748363148479,0.19981264,110130.0,110120.0,0.742]
[1748363148740,0.30756659,110130.0,110120.0,0.742]
[1748363148952,0.32386659,110130.0,110120.0,0.742]
[1748363151455,0.19981264,110130.0,110120.0,1.25654035]
[1748363151679,0.19981264,110130.0,110120.0,1.27224035]
[1748363151935,0.19073288,110130.0,110120.0,1.27224035]
[1748363152165,0.19073288,110130.0,110120.0,2.09560935]
[1748363152397,0.19073288,110130.0,110120.0,1.82735135]
[1748363153329,0.19073288,110130.0,110120.0,1.42145035]
[1748363156199,0.00912933,110130.0,110120.0,1.6962304]
[1748363156449,0.01820843,110130.0,110120.0,4.62660718]
[1748363156659,0.20889224,110130.0,110120.0,4.58800194]
[1748363157353,0.20889224,110130.0,110120.0,4.36784794]
[1748363157821,0.19981264,110130.0,110120.0,4.36784794]
[1748363158292,0.19981264,110130.0,110120.0,5.84570294]
[1748363158532,0.19981264,110130.0,110120.0,5.44901594]
[1748363158989,0.19073288,110130.0,110120.0,5.45870027]
[1748363159228,0.18165287,110130.0,110120.0,5.33779827]
[1748363159441,0.18165287,110130.0,110120.0,4.8582983]
[1748363159932,0.18165287,110130.0,110120.0,2.16668235]
[1748363160174,0.18165287,110130.0,110120.0,2.04114035]
[1748363160415,0.18165287,110130.0,110120.0,1.74982035]
[1748363160897,0.19835287,110130.0,110120.0,1.25654035]
[1748363162258,0.21495287,110130.0,110120.0,0.91654035]
[1748363164333,0.19835287,110130.0,110120.0,0.91654035]
[1748363164567,0.18165287,110130.0,110120.0,0.91654035]
[1748363165023,0.19922866,110130.0,110120.0,0.91654035]
[1748363165251,0.19695287,110130.0,110120.0,0.91654035]
[1748363165516,0.21255287,110130.0,110120.0,0.402]
[1748363165724,0.30360682,110130.0,110120.0,0.402]
[1748363166175,0.30360682,110130.0,110120.0,0.91654035]
[1748363168750,0.30360682,110130.0,110120.0,0.402]
[1748363168967,0.38125169,110130.0,110120.0,0.402]
[1748363169194,0.30360682,110130.0,110120.0,0.402]
[1748363172529,0.30360682,110130.0,110120.0,0.002]
[1748363173283,0.30360682,110130.0,110120.0,0.51654035]
[1748363173522,0.28800682,110130.0,110120.0,0.54606517]
[1748363173742,0.18165287,110130.0,110120.0,0.90146517]
[1748363173964,0.18165287,110130.0,110120.0,1.06510817]
[1748363174178,0.18165287,110130.0,110120.0,1.12850335]
[1748363174633,0.18165287,110130.0,110120.0,1.10562135]
[1748363174928,0.19073296,110130.0,110120.0,1.10562135]
[1748363175134,0.1816019,110140.0,110130.0,0.0151]
[1748363175378,0.1816019,110140.0,110130.0,1.75844835]
[1748363175615,0.1816019,110140.0,110130.0,0.91454035]
[1748363175821,0.18387769,110140.0,110130.0,0.91454035]
[1748363176478,0.18487769,110140.0,110130.0,0.91454035]
[1748363177864,0.20037769,110140.0,110130.0,0.91454035]
[1748363178084,0.1991019,110140.0,110130.0,0.91454035]
[1748363180320,0.29015585,110140.0,110130.0,0.91454035]
[1748363180533,0.30555585,110140.0,110130.0,0.91454035]
[1748363181194,0.30555585,110140.0,110130.0,0.4]
[1748363181869,0.29015585,110140.0,110130.0,0.4]
[1748363182092,0.1991019,110140.0,110130.0,0.91454035]
[1748363182311,0.1836019,110140.0,110130.0,0.91454035]
[1748363182549,0.18587769,110140.0,110130.0,0.91454035]
[1748363185697,0.20257769,110140.0,110130.0,0.91454035]
[1748363185919,0.2160019,110140.0,110130.0,0.4]
[1748363188121,0.2164019,110140.0,110130.0,0.4]
[1748363189667,0.30745585,110140.0,110130.0,0.4]
[1748363191688,0.2003019,110140.0,110130.0,0.91454035]
[1748363195575,0.1836019,110140.0,110130.0,1.92419117]
[1748363195801,0.1836019,110140.0,110130.0,0.798232]
[1748363196038,0.1836019,110140.0,110130.0,1.20534035]
[1748363196248,0.2001019,110140.0,110130.0,1.20534035]
[1748363196481,0.2001019,110140.0,110130.0,0.6908]
[1748363196738,0.2001019,110140.0,110130.0,0.91454035]
[1748363197672,0.2001019,110140.0,110130.0,0.4]
[1748363197869,0.2001019,110140.0,110130.0,0.91454035]
[1748363198544,0.2001019,110140.0,110130.0,0.4]
[1748363198771,0.2001019,110140.0,110130.0,0.91454035]
[1748363199470,0.2001019,110140.0,110130.0,1.25454035]
[1748363200677,0.30675585,110140.0,110130.0,0.74]
[1748363201582,0.30675585,110140.0,110130.0,0.4]
[1748363202791,0.30675585,110140.0,110130.0,1.25454035]
[1748363203234,0.30675585,110140.0,110130.0,0.4]
[1748363206023,0.30675585,110140.0,110130.0,0.94894079]
[1748363209285,0.30675585,110140.0,110130.0,0.54894079]
[1748363210383,0.30675585,110140.0,110130.0,0.94894079]
[1748363211979,0.22278356,110130.0,110120.0,0.89143567]
[1748363212195,0.31383751,110130.0,110120.0,0.89143567]
[1748363212416,0.31383751,110130.0,110120.0,1.29143567]
[1748363213396,0.31383751,110130.0,110120.0,1.29243567]
[1748363213620,0.31383751,110130.0,110120.0,0.95343567]
[1748363214310,0.31383751,110130.0,110120.0,0.55343567]
[1748363214535,0.31383751,110130.0,110120.0,0.55094079]
[1748363214993,0.31383751,110130.0,110120.0,0.002]
[1748363215477,0.61893836,110130.0,110120.0,0.002]
[1748363221752,0.69899239,110130.0,110120.0,0.002]
[1748363222236,1.31175754,110130.0,110120.0,0.002]
[1748363222492,1.30793318,110130.0,110120.0,0.002]
[1748363222709,1.30793318,110130.0,110100.0,0.002]
[1748363222710,1.13668125,110110.0,110100.0,0.002]
[1748363222955,1.70198915,110110.0,110100.0,0.002]
[1748363223423,1.75642915,110110.0,110100.0,0.002]
[1748363223656,0.06,110100.0,110080.0,0.002]
[1748363223882,0.61708565,110090.0,110080.0,0.002]
[1748363224106,0.61480986,110090.0,110080.0,0.002]
[1748363224324,0.63359335,110090.0,110080.0,0.002]
[1748363225330,0.64717662,110090.0,110080.0,0.0021483]
[1748363225999,0.67171747,110090.0,110080.0,0.0021483]
[1748363226461,1.18705987,110090.0,110080.0,0.0021483]
[1748363227120,1.19005987,110090.0,110080.0,0.0021483]
[1748363227356,1.24005987,110090.0,110080.0,0.0021483]
[1748363227843,0.36341398,110090.0,110080.0,0.0021483]
[1748363228061,0.74661398,110090.0,110080.0,0.03167312]
[1748363228277,0.74661398,110090.0,110080.0,0.0021483]
[1748363228496,0.79661398,110090.0,110080.0,0.0021483]
[1748363228722,0.50446793,110090.0,110080.0,0.0021483]
[1748363228963,1.41281033,110090.0,110080.0,0.0021483]
[1748363229426,0.89746793,110090.0,110080.0,0.0021483]
[1748363230526,0.80641398,110090.0,110080.0,0.0021483]
[1748363230750,0.41941398,110090.0,110080.0,0.0021483]
[1748363230971,0.40741398,110090.0,110080.0,0.0021483]
[1748363231197,0.74041398,110090.0,110080.0,0.0021483]
[1748363231626,0.44989398,110090.0,110080.0,0.0021483]
[1748363231630,0.74041398,110090.0,110080.0,0.0021483]
[1748363232076,0.64793398,110090.0,110080.0,0.0021483]
[1748363232303,0.32917313,110090.0,110080.0,0.0021483]
[1748363232542,0.61973313,110090.0,110080.0,0.0021483]
[1748363232809,0.31247313,110090.0,110080.0,0.0021483]
[1748363233247,0.30947313,110090.0,110080.0,0.0021483]
[1748363233466,0.29088986,110090.0,110080.0,0.3580483]
[1748363233682,0.29088986,110090.0,110080.0,0.3590483]
[1748363233683,0.29188986,110090.0,110080.0,0.3590483]
[1748363234360,0.29088986,110090.0,110080.0,0.3590483]
[1748363234842,0.19983591,110090.0,110080.0,0.8753907]
[1748363235067,0.19983591,110090.0,110080.0,0.8904907]
[1748363235514,0.19983591,110090.0,110080.0,0.8894907]
[1748363235731,0.19983591,110090.0,110080.0,0.8914907]
[1748363235961,0.19983591,110090.0,110080.0,1.2914907]
[1748363237384,0.19983591,110090.0,110080.0,3.10008783]
[1748363237385,0.00908281,110090.0,110080.0,3.10008783]
[1748363237611,0.00908281,110090.0,110080.0,3.1340262]
[1748363237612,0.02724918,110090.0,110080.0,3.1340262]
[1748363237810,0.02724918,110090.0,110080.0,3.14311016]
[1748363238028,0.02724909,110090.0,110080.0,3.11825493]
[1748363238274,0.02724909,110090.0,110080.0,5.18414353]
[1748363238495,0.22708541,110090.0,110080.0,4.98414293]
[1748363238727,0.22708541,110090.0,110080.0,4.97305921]
[1748363239013,0.19983632,110090.0,110080.0,2.23718465]
[1748363239217,0.19983632,110090.0,110080.0,2.2708849]
[1748363239459,0.19983632,110090.0,110080.0,2.83389905]
[1748363239729,0.19983632,110090.0,110080.0,2.85306707]
[1748363239979,0.01816678,110090.0,110080.0,2.86215054]
[1748363240211,0.19983275,110100.0,110090.0,0.57253623]
[1748363240442,0.19983275,110100.0,110090.0,1.91543963]
[1748363240691,0.19983275,110100.0,110090.0,2.29839963]
[1748363240907,0.19983275,110100.0,110090.0,2.69839963]
[1748363241597,0.19983275,110100.0,110090.0,2.70748277]
[1748363241836,0.19983275,110100.0,110090.0,2.56589963]
[1748363242536,0.19983275,110100.0,110090.0,2.56689963]
[1748363243023,0.19075043,110100.0,110090.0,1.851721]
[1748363243268,0.18166787,110100.0,110090.0,1.9676064]
[1748363243487,0.18166787,110100.0,110090.0,2.2429464]
[1748363244831,0.18166787,110100.0,110090.0,2.2027834]
[1748363246002,0.29069761,110100.0,110090.0,0.401]
[1748363246223,0.28842182,110100.0,110090.0,0.401]